fUSD/lending_fUSD_20250812
["ID","MTS","AMOUNT","RATE_DAILY","PERIOD"]
[378824128,1755037855369,-400.0,0.00049589,120]
[378824129,1755037855379,-400.0,0.00049589,120]
[378824130,1755037855388,-400.0,0.00049589,120]
[378824131,1755037855397,-400.0,0.00049589,120]
[378824132,1755037855407,-400.0,0.00049589,120]
[378824133,1755037855416,-525.64430869,0.00049589,120]
[378824134,1755037855425,-522.12,0.00049589,120]
[378824135,1755037855435,-1000.0,0.00049589,120]
[378824136,1755037855444,-400.0,0.00049589,120]
[378824137,1755037855453,-400.0,0.00049589,120]
[378824138,1755037855463,-400.0,0.00049589,120]
[378824139,1755037855473,-400.0,0.00049589,120]
[378824140,1755037855482,-400.0,0.00049589,120]
[378824141,1755037855492,-400.0,0.00049589,120]
[378824142,1755037855502,-400.0,0.00049589,120]
[378824143,1755037855511,-400.0,0.00049589,120]
[378824144,1755037855520,-224.04507335,0.00049589,120]
[378824145,1755037855530,-500.0,0.00049589,120]
[378824146,1755037855539,-400.0,0.00049589,120]
[378824147,1755037855548,-500.0,0.00049589,120]
[378824148,1755037855558,-500.0,0.00049589,120]
[378824149,1755037855567,-500.0,0.00049589,120]
[378824150,1755037855577,-500.0,0.00049589,120]
[378824151,1755037855586,-500.0,0.00049589,120]
[378824152,1755037855597,-400.0,0.00049589,120]
[378824153,1755037855607,-401.34,0.00049589,120]
[378824154,1755037855616,-1381.08,0.00049589,120]
[378824155,1755037855626,-400.0,0.00049589,120]
[378824156,1755037855635,-400.0,0.00049589,120]
[378824157,1755037855645,-400.0,0.00049589,120]
[378824158,1755037855655,-906.43,0.00049589,120]
[378824159,1755037855664,-400.0,0.00049589,120]
[378824160,1755037855673,-400.0,0.00049589,120]
[378824161,1755037855685,-467.08735652,0.00049589,120]
[378824162,1755037855695,-400.0,0.00049589,120]
[378824163,1755037855705,-400.0,0.00049589,120]
[378824164,1755037855715,-702.64,0.00049589,120]
[378824165,1755037855725,-400.0,0.00049589,120]
[378824166,1755037855735,-400.0,0.00049589,120]
[378824167,1755037855746,-400.0,0.00049589,120]
[378824168,1755037855757,-400.0,0.00049589,120]
[378824169,1755037855767,-400.0,0.00049589,120]
[378824170,1755037855777,-400.0,0.00049589,120]
[378824171,1755037855786,-400.0,0.00049589,120]
[378824172,1755037855795,-454.46495961,0.00049589,120]
[378824173,1755037855804,-736.51,0.00049589,120]
[378824174,1755037855813,-400.0,0.00049589,120]
[378824175,1755037855823,-400.0,0.00049589,120]
[378824176,1755037855833,-400.0,0.00049589,120]
[378824177,1755037855843,-400.0,0.00049589,120]
[378824178,1755037855852,-554.0,0.00049589,120]
[378824179,1755037855861,-941.66,0.00049589,120]
[378824180,1755037855871,-233.0900002,0.00049589,2]
[378824181,1755037855880,-400.0,0.00049589,120]
[378824182,1755037855889,-864.28,0.00049589,120]
[378824183,1755037855898,-400.0,0.00049589,120]
[378824184,1755037855908,-400.0,0.00049589,120]
[378824185,1755037855917,-400.0,0.00049589,120]
[378824186,1755037855926,-400.0,0.00049589,120]
[378824187,1755037855935,-400.0,0.00049589,120]
[378824188,1755037855944,-400.0,0.00049589,120]
[378824189,1755037855953,-400.0,0.00049589,120]
[378824190,1755037855963,-400.0,0.00049589,120]
[378824191,1755037855973,-400.0,0.00049589,120]
[378824192,1755037855984,-404.15691361,0.00049589,120]
[378824193,1755037855994,-400.0,0.00049589,120]
[378824194,1755037856004,-400.0,0.00049589,120]
[378824195,1755037856014,-598.33,0.00049589,120]
[378824196,1755037856025,-483.35,0.00049589,120]
[378824197,1755037856035,-400.0,0.00049589,120]
[378824198,1755037856046,-400.0,0.00049589,120]
[378824199,1755037856056,-400.0,0.00049589,120]
[378824200,1755037856067,-400.0,0.00049589,120]
[378824201,1755037856080,-400.0,0.00049589,120]
[378824202,1755037856091,-836.32,0.00049589,120]
[378824203,1755037856101,-465.91,0.00049589,120]
[378824204,1755037856112,-400.0,0.00049589,120]
[378824205,1755037856123,-537.7,0.00049589,120]
[378824206,1755037856133,-400.0,0.00049589,120]
[378824207,1755037856143,-400.0,0.00049589,120]
[378824208,1755037856155,-400.0,0.00049589,120]
[378824209,1755037856169,-509.33,0.00049589,120]
[378824210,1755037856179,-400.0,0.00049589,120]
[378824211,1755037856189,-400.0,0.00049589,120]
[378824212,1755037856199,-400.0,0.00049589,120]
[378824213,1755037856209,-787.77,0.00049589,120]
[378824214,1755037856219,-400.0,0.00049589,120]
[378824215,1755037856228,-400.0,0.00049589,120]
[378824216,1755037856237,-429.95,0.00049589,120]
[378824217,1755037856246,-400.0,0.00049589,120]
[378824218,1755037856256,-400.0,0.00049589,120]
[378824219,1755037856446,-400.0,0.00049589,120]
[378824220,1755037856457,-400.0,0.00049589,120]
[378824221,1755037856467,-466.28732478,0.00049589,120]
[378824222,1755037856476,-400.0,0.00049589,120]
[378824223,1755037856486,-400.0,0.00049589,120]
[378824224,1755037856495,-400.0,0.00049589,120]
[378824225,1755037856505,-400.0,0.00049589,120]
[378824226,1755037856515,-619.5,0.00049589,120]
[378824227,1755037856524,-477.55,0.00049589,120]
[378824228,1755037856534,-400.0,0.00049589,120]
[378824229,1755037856544,-673.75,0.00049589,120]
[378824230,1755037856554,-180.0,0.00049589,120]
[378824231,1755037856563,-400.0,0.00049589,120]
[378824232,1755037856572,-400.0,0.00049589,120]
[378824233,1755037856582,-503.47229434,0.00049589,120]
[378824234,1755037856591,-400.0,0.00049589,120]
[378824235,1755037856601,-400.0,0.00049589,120]
[378824236,1755037856610,-400.0,0.00049589,120]
[378824237,1755037856620,-907.71,0.00049589,120]
[378824238,1755037856629,-400.0,0.00049589,120]
[378824239,1755037856639,-400.0,0.00049589,120]
[378824240,1755037856648,-567.95,0.00049589,120]
[378824241,1755037856657,-440.34,0.00049589,120]
[378824242,1755037856667,-400.0,0.00049589,120]
[378824243,1755037856676,-607.43,0.00049589,120]
[378824244,1755037856687,-400.0,0.00049589,120]
[378824245,1755037856700,-408.85,0.00049589,120]
[378824246,1755037856709,-517.94877279,0.00049589,120]
[378824247,1755037856718,-400.0,0.00049589,120]
[378824248,1755037856729,-561.5,0.00049589,120]
[378824249,1755037856739,-400.0,0.00049589,120]
[378824250,1755037856749,-683.62,0.00049589,120]
[378824251,1755037856759,-400.0,0.00049589,120]
[378824252,1755037856772,-426.98,0.00049589,120]
[378824253,1755037856782,-400.0,0.00049589,120]
[378824254,1755037856792,-400.0,0.00049589,120]
[378824255,1755037856801,-400.0,0.00049589,120]
[378824256,1755037856811,-400.0,0.00049589,120]
[378824257,1755037856820,-400.0,0.00049589,120]
[378824258,1755037856830,-847.43,0.00049589,120]
[378824259,1755037856839,-400.0,0.00049589,120]
[378824260,1755037856849,-520.5,0.00049589,120]
[378824261,1755037856859,-500.0,0.00049589,120]
[378824262,1755037856868,-500.0,0.00049589,120]
[378824263,1755037856878,-502.0,0.00049589,120]
[378824264,1755037856887,-467.04,0.00049589,120]
[378824265,1755037856896,-562.36,0.00049589,120]
[378824266,1755037856906,-910.39,0.00049589,120]
[378824267,1755037856916,-500.0,0.00049589,120]
[378824268,1755037856926,-500.0,0.00049589,120]
[378824269,1755037856936,-151.72107179,0.00049589,120]
[378824270,1755037856946,-150.0,0.00049589,120]
[378824271,1755037856956,-674.26,0.00049589,120]
[378824272,1755037856965,-1059.95,0.00049589,120]
[378824273,1755037856975,-791.57,0.00049589,120]
[378824274,1755037856984,-400.0,0.00049589,120]
[378824275,1755037856994,-400.0,0.00049589,120]
[378824276,1755037857003,-400.0,0.00049589,120]
[378824277,1755037857013,-516.94,0.00049589,120]
[378824278,1755037857022,-692.85,0.00049589,120]
[378824279,1755037857031,-400.0,0.00049589,120]
[378824280,1755037857041,-400.0,0.00049589,120]
[378824281,1755037857052,-400.0,0.00049589,120]
[378824282,1755037857063,-490.28,0.00049589,120]
[378824283,1755037857073,-1249.89,0.00049589,120]
[378824284,1755037857083,-400.0,0.00049589,120]
[378824285,1755037857092,-523.78,0.00049589,120]
[378824286,1755037857101,-1396.98,0.00049589,120]
[378824287,1755037857112,-504.11,0.00049589,120]
[378824288,1755037857123,-400.0,0.00049589,120]
[378824289,1755037857132,-497.56,0.00049589,120]
[378824290,1755037857141,-605.68,0.00049589,120]
[378824291,1755037857151,-477.9,0.00049589,120]
[378824292,1755037857162,-400.0,0.00049589,120]
[378824293,1755037857172,-400.0,0.00049589,120]
[378824294,1755037857181,-628.08,0.00049589,120]
[378824295,1755037857191,-400.0,0.00049589,120]
[378824296,1755037857199,-508.64,0.00049589,120]
[378824297,1755037857209,-508.07,0.00049589,30]
[378824298,1755037857219,-400.0,0.00049589,120]
[378824299,1755037857228,-400.0,0.00049589,120]
[378824300,1755037857237,-400.0,0.00049589,120]
[378824301,1755037857246,-901.75,0.00049589,120]
[378824302,1755037857256,-964.77,0.00049589,120]
[378824303,1755037857265,-400.0,0.00049589,120]
[378824304,1755037857275,-791.31,0.00049589,120]
[378824305,1755037857284,-467.89,0.00049589,120]
[378824306,1755037857294,-400.0,0.00049589,120]
[378824307,1755037857303,-467.26,0.00049589,120]
[378824308,1755037857312,-400.0,0.00049589,120]
[378824309,1755037857321,-1112.78,0.00049589,120]
[378824310,1755037857332,-767.98,0.00049589,120]
[378824311,1755037857343,-468.32,0.00049589,120]
[378824312,1755037857353,-662.14,0.00049589,120]
[378824313,1755037857362,-400.0,0.00049589,120]
[378824314,1755037857372,-400.0,0.00049589,120]
[378824315,1755037857381,-410.47,0.00049589,120]
[378824316,1755037857391,-627.85,0.00049589,120]
[378824317,1755037857400,-400.0,0.00049589,120]
[378824318,1755037857411,-458.16,0.00049589,120]
[378824319,1755037857420,-400.0,0.00049589,120]
[378824320,1755037857429,-400.0,0.00049589,120]
[378824321,1755037857439,-803.25,0.00049589,120]
[378824322,1755037857448,-400.0,0.00049589,120]
[378824323,1755037857458,-400.0,0.00049589,120]
[378824324,1755037857467,-400.0,0.00049589,120]
[378824325,1755037857477,-400.0,0.00049589,120]
[378824326,1755037857487,-400.0,0.00049589,120]
[378824327,1755037857496,-400.0,0.00049589,120]
[378824328,1755037857506,-557.26,0.00049589,120]
[378824329,1755037857515,-400.0,0.00049589,120]
[378824330,1755037857525,-400.0,0.00049589,120]
[378824331,1755037857535,-400.0,0.00049589,120]
[378824332,1755037857544,-400.0,0.00049589,120]
[378824333,1755037857554,-746.33,0.00049589,120]
[378824334,1755037857563,-400.0,0.00049589,120]
[378824335,1755037857572,-400.0,0.00049589,60]
[378824336,1755037857582,-400.0,0.00049589,120]
[378824337,1755037857591,-400.0,0.00049589,120]
[378824338,1755037857600,-482.29,0.00049589,120]
[378824339,1755037857610,-400.0,0.00049589,120]
[378824340,1755037857619,-457.59,0.00049589,120]
[378824341,1755037857629,-946.05,0.00049589,120]
[378824342,1755037857638,-496.12,0.00049589,120]
[378824343,1755037857648,-400.0,0.00049589,120]
[378824344,1755037857659,-400.0,0.00049589,120]
[378824345,1755037857669,-898.78,0.00049589,120]
[378824346,1755037857679,-400.0,0.00049589,120]
[378824347,1755037857694,-400.0,0.00049589,120]
[378824348,1755037857705,-400.0,0.00049589,120]
[378824349,1755037857715,-811.32,0.00049589,120]
[378824350,1755037857724,-400.0,0.00049589,120]
[378824351,1755037857735,-751.95,0.00049589,120]
[378824352,1755037857745,-400.0,0.00049589,120]
[378824353,1755037857754,-500.0,0.00049589,120]
[378824354,1755037857764,-500.0,0.00049589,120]
[378824355,1755037857775,-400.0,0.00049589,120]
[378824356,1755037857785,-500.0,0.00049589,120]
[378824357,1755037857795,-500.0,0.00049589,120]
[378824358,1755037857805,-906.0,0.00049589,120]
[378824359,1755037857815,-457.29,0.00049589,120]
[378824360,1755037857824,-906.0,0.00049589,120]
[378824361,1755037857834,-497.34,0.00049589,120]
[378824362,1755037857843,-400.0,0.00049589,120]
[378824363,1755037857852,-400.0,0.00049589,120]
[378824364,1755037857864,-975.12,0.00049589,120]
[378824365,1755037857874,-400.0,0.00049589,120]
[378824366,1755037857883,-430.14,0.00049589,120]
[378824367,1755037857892,-400.0,0.00049589,120]
[378824368,1755037857902,-416.97,0.00049589,120]
[378824369,1755037857912,-434.23,0.00049589,120]
[378824370,1755037857921,-151.36,0.00049589,120]
[378824371,1755037857930,-400.0,0.00049589,120]
[378824372,1755037857940,-487.57,0.00049589,120]
[378824373,1755037857951,-400.0,0.00049589,120]
[378824374,1755037857961,-1329.15,0.00049589,120]
[378824375,1755037857970,-1027.81,0.00049589,120]
[378824376,1755037857980,-400.0,0.00049589,120]
[378824377,1755037857989,-925.98,0.00049589,120]
[378824378,1755037857998,-400.0,0.00049589,120]
[378824379,1755037858007,-400.0,0.00049589,120]
[378824380,1755037858017,-404.91,0.00049589,120]
[378824381,1755037858026,-1315.52,0.00049589,120]
[378824382,1755037858035,-400.0,0.00049589,120]
[378824383,1755037858043,-400.0,0.00049589,120]
[378824384,1755037858051,-400.0,0.00049589,120]
[378824385,1755037858060,-930.76,0.00049589,120]
[378824386,1755037858069,-455.38,0.00049589,120]
[378824387,1755037858079,-476.03,0.00049589,120]
[378824388,1755037858088,-400.0,0.00049589,120]
[378824389,1755037858097,-400.0,0.00049589,120]
[378824390,1755037858107,-400.0,0.00049589,120]
[378824391,1755037858115,-426.16,0.00049589,120]
[378824392,1755037858123,-400.0,0.00049589,120]
[378824393,1755037858136,-479.97,0.00049589,120]
[378824394,1755037858145,-704.89,0.00049589,120]
[378824395,1755037858155,-435.9,0.00049589,120]
[378824396,1755037858164,-416.23,0.00049589,120]
[378824397,1755037858173,-400.0,0.00049589,120]
[378824398,1755037858183,-400.0,0.00049589,120]
[378824399,1755037858192,-400.0,0.00049589,120]
[378824400,1755037858201,-913.74,0.00049589,120]
[378824401,1755037858210,-400.0,0.00049589,120]
[378824402,1755037858219,-400.0,0.00049589,120]
[378824403,1755037858228,-400.0,0.00049589,120]
[378824404,1755037858237,-637.4,0.00049589,120]
[378824405,1755037858246,-665.22,0.00049589,120]
[378824406,1755037858255,-589.88,0.00049589,120]
[378824407,1755037858263,-400.0,0.00049589,120]
[378824408,1755037858273,-400.0,0.00049589,120]
[378824409,1755037858282,-196.31447111,0.00049589,120]
[378824410,1755037858291,-274.67,0.00049589,120]
[378824411,1755037858301,-400.0,0.00049589,120]
[378824412,1755037858311,-400.0,0.00049589,120]
[378824413,1755037858320,-447.06,0.00049589,120]
[378824414,1755037858329,-400.0,0.00049589,120]
[378824415,1755037858338,-400.0,0.00049589,120]
[378824416,1755037858347,-400.0,0.00049589,120]
[378824417,1755037858356,-400.0,0.00049589,120]
[378824418,1755037858365,-400.0,0.00049589,120]
[378824419,1755037858374,-400.0,0.00049589,120]
[378824420,1755037858383,-812.17,0.00049589,120]
[378824421,1755037858393,-400.0,0.00049589,120]
[378824422,1755037858402,-713.01,0.00049589,120]
[378824423,1755037858412,-882.67,0.00049589,120]
[378824424,1755037858421,-484.16,0.00049589,120]
[378824425,1755037858430,-400.0,0.00049589,120]
[378824426,1755037858439,-400.0,0.00049589,120]
[378824427,1755037858449,-646.94,0.00049589,120]
[378824428,1755037858459,-746.51,0.00049589,120]
[378824429,1755037858468,-400.0,0.00049589,120]
[378824430,1755037858477,-400.0,0.00049589,120]
[378824431,1755037858486,-400.0,0.00049589,120]
[378824432,1755037858496,-400.0,0.00049589,120]
[378824433,1755037858505,-537.79,0.00049589,120]
[378824434,1755037858514,-400.0,0.00049589,120]
[378824435,1755037858523,-752.03,0.00049589,120]
[378824436,1755037858533,-762.0,0.00049589,120]
[378824437,1755037858542,-487.39,0.00049589,120]
[378824438,1755037858552,-400.0,0.00049589,120]
[378824439,1755037858562,-400.0,0.00049589,120]
[378824440,1755037858571,-400.0,0.00049589,120]
[378824441,1755037858580,-400.0,0.00049589,120]
[378824442,1755037858590,-400.0,0.00049589,120]
[378824443,1755037858599,-400.0,0.00049589,120]
[378824444,1755037858608,-400.0,0.00049589,120]
[378824445,1755037858618,-553.27,0.00049589,120]
[378824446,1755037858626,-449.88,0.00049589,120]
[378824447,1755037858635,-400.0,0.00049589,120]
[378824448,1755037858645,-400.0,0.00049589,120]
[378824449,1755037858654,-1226.67,0.00049589,120]
[378824450,1755037858664,-171.25264387,0.00049589,2]
[378824451,1755037858673,-851.34,0.00049589,120]
[378824452,1755037858684,-971.94,0.00049589,120]
[378824453,1755037858695,-439.47,0.00049589,120]
[378824454,1755037858704,-1384.37,0.00049589,120]
[378824455,1755037858713,-2110.25,0.00049589,120]
[378824456,1755037858722,-400.0,0.00049589,120]
[378824457,1755037858734,-400.0,0.00049589,120]
[378824458,1755037858743,-150.0,0.00049589,120]
[378824459,1755037858752,-510.8,0.00049589,120]
[378824460,1755037858762,-260.70686349,0.00049589,120]
[378824461,1755037858771,-400.0,0.00049589,120]
[378824462,1755037858782,-400.0,0.00049589,120]
[378824463,1755037858791,-400.0,0.00049589,120]
[378824464,1755037858800,-400.0,0.00049589,120]
[378824465,1755037858809,-400.0,0.00049589,120]
[378824466,1755037858818,-400.0,0.00049589,120]
[378824467,1755037858827,-825.77,0.00049589,120]
[378824468,1755037858836,-797.75,0.00049589,120]
[378824469,1755037858845,-400.0,0.00049589,120]
[378824470,1755037858854,-1418.26,0.00049589,120]
[378824471,1755037858864,-400.0,0.00049589,120]
[378824472,1755037858873,-176.81244,0.00049589,47]
[378824473,1755037858882,-400.0,0.00049589,120]
[378824474,1755037858890,-400.0,0.00049589,120]
[378824475,1755037858899,-400.0,0.00049589,120]
[378824476,1755037858908,-400.0,0.00049589,120]
[378824477,1755037858917,-400.0,0.00049589,120]
[378824478,1755037858927,-1069.76,0.00049589,120]
[378824479,1755037858935,-151.0,0.00049589,120]
[378824480,1755037858945,-1391.57,0.00049589,120]
[378824481,1755037858953,-161.58,0.00049589,120]
[378824482,1755037858963,-581.28,0.00049589,120]
[378824483,1755037858972,-510.2,0.00049589,120]
[378824484,1755037858981,-833.04,0.00049589,120]
[378824485,1755037858990,-400.0,0.00049589,120]
[378824486,1755037858999,-400.0,0.00049589,120]
[378824487,1755037859008,-1121.69,0.00049589,120]
[378824488,1755037859017,-400.0,0.00049589,120]
[378824489,1755037859026,-151.0,0.00049589,120]
[378824490,1755037859035,-1783.71,0.00049589,120]
[378824491,1755037859044,-510.74,0.00049589,120]
[378824492,1755037859053,-400.0,0.00049589,120]
[378824493,1755037859062,-400.0,0.00049589,120]
[378824494,1755037859071,-1549.92,0.00049589,120]
[378824495,1755037859080,-1011.39,0.00049589,120]
[378824496,1755037859090,-1337.94,0.00049589,120]
[378824497,1755037859099,-400.0,0.00049589,120]
[378824498,1755037859108,-902.77,0.00049589,120]
[378824499,1755037859118,-1871.09,0.00049589,120]
[378824500,1755037859127,-416.63,0.00049589,120]
[378824501,1755037859136,-1252.48,0.00049589,120]
[378824502,1755037859145,-400.0,0.00049589,120]
[378824503,1755037859154,-718.89,0.00049589,120]
[378824504,1755037859163,-1531.81,0.00049589,120]
[378824505,1755037859172,-400.0,0.00049589,120]
[378824506,1755037859181,-2252.52,0.00049589,120]
[378824507,1755037859193,-1591.82,0.00049589,120]
[378824508,1755037859202,-400.0,0.00049589,120]
[378824509,1755037859211,-151.0,0.00049589,120]
[378824510,1755037859221,-727.33,0.00049589,120]
[378824511,1755037859234,-1338.32,0.00049589,120]
[378824512,1755037859243,-400.0,0.00049589,120]
[378824513,1755037859253,-570.65,0.00049589,120]
[378824514,1755037859264,-824.5,0.00049589,120]
[378824515,1755037859272,-400.0,0.00049589,120]
[378824516,1755037859281,-151.0,0.00049589,120]
[378824517,1755037859291,-2936.59,0.00049589,120]
[378824518,1755037859302,-400.0,0.00049589,120]
[378824519,1755037859311,-570.91,0.00049589,120]
[378824520,1755037859319,-604.89,0.00049589,120]
[378824521,1755037859328,-805.68,0.00049589,120]
[378824522,1755037859337,-400.0,0.00049589,120]
[378824523,1755037859347,-1243.14,0.00049589,120]
[378824524,1755037859356,-400.0,0.00049589,120]
[378824525,1755037859540,-400.0,0.00049589,120]
[378824526,1755037859551,-151.0,0.00049589,120]
[378824527,1755037859560,-1506.57,0.00049589,120]
[378824528,1755037859569,-7103.12,0.00049589,120]
[378824529,1755037859579,-635.16,0.00049589,120]
[378824530,1755037859588,-151.0,0.00049589,120]
[378824531,1755037859597,-769.22,0.00049589,120]
[378824532,1755037859607,-915.56,0.00049589,120]
[378824533,1755037859616,-2108.99,0.00049589,120]
[378824534,1755037859625,-400.0,0.00049589,120]
[378824535,1755037859634,-400.0,0.00049589,120]
[378824536,1755037859644,-400.0,0.00049589,120]
[378824537,1755037859653,-1436.49,0.00049589,120]
[378824538,1755037859663,-151.0,0.00049589,120]
[378824539,1755037859673,-1103.4,0.00049589,120]
[378824540,1755037859683,-955.29,0.00049589,120]
[378824541,1755037859693,-400.0,0.00049589,120]
[378824542,1755037859705,-706.86,0.00049589,120]
[378824543,1755037859714,-400.0,0.00049589,120]
[378824544,1755037859723,-400.0,0.00049589,120]
[378824545,1755037859734,-151.0,0.00049589,120]
[378824546,1755037859743,-400.0,0.00049589,120]
[378824547,1755037859753,-868.64,0.00049589,120]
[378824548,1755037859762,-2835.4,0.00049589,120]
[378824549,1755037859772,-400.0,0.00049589,120]
[378824550,1755037859782,-1376.12,0.00049589,120]
[378824551,1755037859791,-151.0,0.00049589,120]
[378824552,1755037859800,-1000.0,0.00049589,120]
[378824553,1755037859810,-454.85,0.00049589,120]
[378824554,1755037859820,-1047.68,0.00049589,120]
[378824555,1755037859829,-532.09,0.00049589,120]
[378824556,1755037859839,-400.0,0.00049589,120]
[378824557,1755037859848,-639.62,0.00049589,120]
[378824558,1755037859859,-151.0,0.00049589,120]
[378824559,1755037859868,-477.25,0.00049589,120]
[378824560,1755037859878,-400.0,0.00049589,120]
[378824561,1755037859887,-151.0,0.00049589,120]
[378824562,1755037859896,-450.3,0.00049589,120]
[378824563,1755037859905,-151.0,0.00049589,118]
[378824564,1755037859916,-584.96,0.00049589,120]
[378824565,1755037859925,-400.0,0.00049589,120]
[378824566,1755037859935,-517.41,0.00049589,120]
[378824567,1755037859945,-1447.3,0.00049589,120]
[378824568,1755037859954,-400.0,0.00049589,120]
[378824569,1755037859963,-400.0,0.00049589,120]
[378824570,1755037859972,-1383.4,0.00049589,120]
[378824571,1755037859982,-400.0,0.00049589,120]
[378824572,1755037859991,-268.71521914,0.00049589,120]
[378824573,1755037860001,-14344.74,0.00049589,120]
[378824574,1755037860010,-874.21,0.00049589,120]
[378824575,1755037860019,-400.0,0.00049589,120]
[378824576,1755037860028,-1252.92,0.00049589,120]
[378824577,1755037860039,-400.0,0.00049589,120]
[378824578,1755037860048,-400.0,0.00049589,120]
[378824579,1755037860058,-150.0,0.00049589,120]
[378824580,1755037860067,-686.06,0.00049589,120]
[378824581,1755037860077,-621.1,0.00049589,120]
[378824582,1755037860086,-150.0,0.00049589,120]
[378824583,1755037860096,-400.0,0.00049589,120]
[378824584,1755037860105,-150.0,0.00049589,120]
[378824585,1755037860114,-150.0,0.00049589,120]
[378824586,1755037860123,-441.43,0.00049589,120]
[378824587,1755037860133,-400.0,0.00049589,120]
[378824588,1755037860142,-150.0,0.00049589,120]
[378824589,1755037860151,-536.19,0.00049589,120]
[378824590,1755037860161,-504.46,0.00049589,120]
[378824591,1755037860171,-150.0,0.00049589,120]
[378824592,1755037860181,-432.96,0.00049589,120]
[378824593,1755037860191,-150.0,0.00049589,120]
[378824594,1755037860200,-416.62,0.00049589,120]
[378824595,1755037860214,-400.0,0.00049589,120]
[378824596,1755037860223,-1042.01,0.00049589,120]
[378824597,1755037860233,-754.66,0.00049589,120]
[378824598,1755037860242,-151.0,0.00049589,120]
[378824599,1755037860252,-2661.65,0.00049589,120]
[378824600,1755037860261,-930.83,0.00049589,120]
[378824601,1755037860272,-837.79,0.00049589,120]
[378824602,1755037860282,-150.80529416,0.00049589,120]
[378824603,1755037860292,-150.0,0.00049589,120]
[378824604,1755037860302,-150.0,0.00049589,120]
[378824605,1755037860311,-151.0,0.00049589,120]
[378824606,1755037860320,-1058.2,0.00049589,120]
[378824607,1755037860330,-548.21,0.00049589,120]
[378824608,1755037860340,-400.0,0.00049589,120]
[378824609,1755037860349,-400.0,0.00049589,120]
[378824610,1755037860359,-538.99,0.00049589,120]
[378824611,1755037860369,-400.0,0.00049589,120]
[378824612,1755037860379,-1029.94,0.00049589,120]
[378824613,1755037860389,-954.76,0.00049589,120]
[378824614,1755037860399,-1673.6,0.00049589,120]
[378824615,1755037860409,-432.54,0.00049589,120]
[378824616,1755037860424,-1200.3,0.00049589,120]
[378824617,1755037860434,-400.0,0.00049589,120]
[378824618,1755037860444,-400.0,0.00049589,120]
[378824619,1755037860454,-725.32,0.00049589,120]
[378824620,1755037860464,-400.0,0.00049589,120]
[378824621,1755037860474,-400.0,0.00049589,120]
[378824622,1755037860484,-264.449048,0.00049589,120]
[378824623,1755037860495,-1033.49,0.00049589,120]
[378824624,1755037860506,-400.0,0.00049589,120]
[378824625,1755037860516,-400.0,0.00049589,120]
[378824626,1755037860525,-1097.0,0.00049589,120]
[378824627,1755037860535,-400.0,0.00049589,120]